bitfinex/quotes_ETHUSD_20250413
["timestamp","ask_amount","ask_price","bid_price","bid_amount"]
[1744540340872,0.25232841,1612.7,1612.5,0.8158]
[1744540341080,6.45315841,1612.7,1612.5,0.8158]
[1744540341390,0.7562,1612.6,1612.1,66.62377]
[1744540341567,6.20155,1612.5,1612.1,66.62377]
[1744540341883,12.65517715,1612.5,1612.1,72.8267]
[1744540342051,6.20194,1612.4,1612.1,66.62373]
[1744540342374,6.20194,1612.4,1612.1,72.8267]
[1744540342676,0.25176715,1612.3,1612.1,72.8267]
[1744540342882,6.20155,1612.5,1612.2,6.2027]
[1744540343080,0.25176715,1612.4,1612.2,6.2027]
[1744540345679,0.25176715,1612.4,1612.1,66.62373]
[1744540345880,6.45380715,1612.4,1612.1,66.62373]
[1744540346087,12.65592715,1612.4,1612.1,66.62373]
[1744540346297,6.45380715,1612.4,1612.1,66.62373]
[1744540346886,0.25176715,1612.4,1612.1,78.84454753]
[1744540347381,0.25176715,1612.4,1612.2,6.20269]
[1744540347581,0.25176715,1612.4,1612.3,6.20231]
[1744540347782,6.98721,1612.7,1612.3,6.20231]
[1744540347963,6.20116,1612.6,1612.3,6.20231]
[1744540348165,6.20157,1612.5,1612.2,6.20254]
[1744540348374,0.25176715,1612.5,1612.2,18.5500396]
[1744540349397,0.25176715,1612.5,1612.3,6.20231]
[1744540349570,0.25176715,1612.5,1612.3,12.4045]
[1744540349972,6.98721,1612.7,1612.3,12.4045]
[1744540350159,0.25176715,1612.4,1612.3,12.4045]
[1744540350359,13.18822,1612.7,1612.3,8.05713596]
[1744540350574,0.25176715,1612.4,1612.3,8.05725596]
[1744540350773,13.18818,1612.7,1612.3,8.05725596]
[1744540350973,0.25176715,1612.4,1612.3,6.20231]
[1744540351196,6.20123,1612.6,1612.3,6.20231]
[1744540351394,0.25176715,1612.4,1612.3,12.40447]
[1744540351698,6.9872,1612.7,1612.4,6.20183]
[1744540351887,6.20128,1612.6,1612.3,6.20216]
[1744540352082,0.7873,1612.5,1612.2,6.20265]
[1744540352287,6.98897,1612.5,1612.2,6.20265]
[1744540352472,6.98897,1612.5,1612.2,12.40519]
[1744540352894,0.7873,1612.5,1612.3,6.20229]
[1744540353095,0.7873,1612.5,1612.3,12.40444]
[1744540353268,6.98808,1612.7,1612.4,6.20191]
[1744540353772,6.98808,1612.7,1612.3,6.20215]
[1744540353773,13.18918,1612.7,1612.3,12.40433]
[1744540354675,0.7873,1612.7,1612.4,12.40371]
[1744540355271,6.98812,1612.7,1612.4,6.20181]
[1744540355499,6.98812,1612.7,1612.4,12.40362]
[1744540355702,1.24466469,1613.1,1612.9,6.19972]
[1744540356200,0.7873,1613.1,1613.0,6.19962]
[1744540356405,0.7873,1613.2,1613.1,6.19919]
[1744540356597,4.06592078,1613.3,1613.1,6.19919]
[1744540356798,4.06592078,1613.3,1613.1,12.39823]
[1744540357179,4.06592078,1613.3,1613.2,6.19885]
[1744540357901,4.06592078,1613.3,1613.2,8.254346]
[1744540358270,4.06592078,1613.3,1613.2,1.239796]
[1744540358597,4.86202078,1613.3,1613.0,12.39895]
[1744540358804,4.86202078,1613.3,1613.0,6.19945]
[1744540359006,4.86202078,1613.3,1613.0,12.39892]
[1744540359182,4.86202078,1613.3,1613.0,6.19945]
[1744540359378,4.86202078,1613.3,1613.0,12.39894]
[1744540359995,4.86202078,1613.3,1613.1,6.19923]
[1744540360302,4.86202078,1613.3,1613.0,6.19945]
[1744540360502,4.86202078,1613.3,1613.1,6.19898]
[1744540360805,4.86202078,1613.3,1613.1,12.39802]
[1744540361133,4.06592078,1613.3,1613.1,12.39802]
[1744540361292,6.99318,1613.7,1613.3,6.19825]
[1744540361498,0.23401772,1613.6,1613.3,6.19825]
[1744540361713,0.7961,1613.7,1613.4,6.19778]
[1744540361936,0.23336242,1613.6,1613.4,6.19778]
[1744540362142,0.7961,1613.7,1613.4,6.19778]
[1744540362316,0.23336242,1613.6,1613.5,6.19752]
[1744540362620,0.7961,1613.7,1613.5,6.19752]
[1744540362824,0.23336242,1613.6,1613.5,6.19752]
[1744540363211,0.7961,1613.7,1613.5,6.19752]
[1744540363413,0.23336242,1613.6,1613.5,6.19752]
[1744540363612,0.23336242,1613.6,1613.5,8.22375]
[1744540363927,6.97443,1613.9,1613.6,6.19728]
[1744540364328,0.7782,1613.9,1613.6,12.39444]
[1744540364502,0.7782,1613.9,1613.7,6.19693]
[1744540364703,0.7782,1614.1,1613.6,6.19727]
[1744540365029,0.7782,1614.1,1613.6,7.01962]
[1744540365030,12.39214,1614.0,1613.6,7.01962]
[1744540365196,6.19603,1614.0,1613.6,13.2168]
[1744540366021,6.19603,1614.0,1613.7,6.19692]
[1744540366402,6.19598,1614.0,1613.6,7.01953]
[1744540366614,12.39207,1614.0,1613.6,7.01953]
[1744540369399,13.709097,1614.0,1613.6,6.19718]
[1744540370204,13.709097,1614.0,1613.6,6.19712]
[1744540370737,0.7782,1614.1,1613.6,6.19732]
[1744540370932,0.7782,1614.1,1613.9,12.392]
[1744540371230,0.7892,1614.2,1613.9,12.39203]
[1744540371635,0.7892,1614.2,1613.7,12.5688]
[1744540371636,6.1957,1614.1,1613.7,12.5688]
[1744540371834,6.1957,1614.1,1613.8,6.19643]
[1744540372622,6.9843,1614.2,1613.8,6.19637]
[1744540372827,6.9843,1614.2,1613.9,6.96899]
[1744540372828,0.7892,1614.2,1613.9,6.96899]
[1744540373022,0.7892,1614.2,1614.0,6.19574]
[1744540373621,6.19465,1614.3,1614.0,6.19574]
[1744540374206,19.6004,1614.4,1614.0,12.39139]
[1744540374405,13.40593,1614.4,1614.1,6.19529]
[1744540374846,7.2116,1614.4,1614.1,6.19528]
[1744540375136,0.02,1614.4,1614.2,0.773]
[1744540375306,0.02,1614.4,1614.3,6.19463]
[1744540376160,0.02,1614.4,1614.3,6.96763]
[1744540376361,0.02,1614.4,1614.3,8.283872]
[1744540376544,0.2531832,1614.4,1614.3,8.283872]
[1744540377065,0.2531832,1614.4,1614.3,11.283872]
[1744540377285,0.02,1614.4,1614.3,11.283872]
[1744540377623,0.26498062,1614.4,1614.3,11.283872]
[1744540377828,0.02,1614.4,1614.3,11.283872]
[1744540378169,0.26498062,1614.4,1614.3,11.283872]
[1744540378368,0.02,1614.4,1614.3,11.283872]
[1744540378568,0.26498062,1614.4,1614.3,11.283872]
[1744540378871,0.02,1614.4,1614.3,11.283872]
[1744540380728,0.02,1614.4,1614.3,7.510872]
[1744540380973,0.26498062,1614.4,1614.3,7.510872]
[1744540381180,0.02,1614.4,1614.3,7.510872]
[1744540382445,0.02,1614.4,1614.3,1.316242]
[1744540382781,0.26498062,1614.4,1614.2,12.38968]
[1744540382986,0.02,1614.4,1614.2,12.38968]
[1744540383288,0.24498062,1614.3,1614.2,12.38968]
[1744540383588,6.21454,1614.4,1614.0,60.648079]
[1744540383769,6.19475,1614.3,1613.9,12.56416]
[1744540383972,1.06409345,1614.2,1613.9,12.56416]
[1744540384269,7.25915345,1614.2,1613.9,12.56416]
[1744540384663,0.24479345,1614.2,1613.9,6.368]
[1744540384862,0.8393,1614.4,1614.1,6.1954]
[1744540385045,0.24207891,1614.3,1614.1,13.706248]
[1744540386140,0.24207891,1614.3,1614.1,7.510968]
[1744540386784,0.24207891,1614.3,1614.2,6.19501]
[1744540387647,0.24207891,1614.3,1614.2,6.98301]
[1744540389794,0.02,1614.4,1614.3,9.98263]
[1744540389982,0.02,1614.4,1614.3,19.38330438]
[1744540390285,6.19185,1615.1,1614.6,6.19325]
[1744540390493,7.02048,1615.0,1614.7,6.19304]
[1744540390694,0.22465741,1614.9,1614.7,6.19304]
[1744540390868,0.22465741,1614.9,1614.7,12.38597]
[1744540391068,0.22465741,1614.9,1614.7,6.19293]
[1744540391799,0.8284,1614.8,1614.3,0.11327333]
[1744540392097,6.19353,1614.6,1614.3,6.30775333]
[1744540392411,6.19398,1614.5,1614.1,8.298878]
[1744540392596,6.19428,1614.4,1614.1,8.298878]
[1744540392896,6.19352,1614.6,1614.2,6.19499]
[1744540393084,0.2275619,1614.5,1614.3,6.1946]
[1744540393279,13.15103,1614.7,1614.3,6.1946]
[1744540393464,6.19412,1614.5,1614.2,0.8298738]
[1744540393664,7.0231,1614.4,1614.0,9.19566]
[1744540393904,0.2275619,1614.3,1614.0,3.0]
[1744540394069,7.02241,1614.6,1614.2,13.17212]
[1744540394273,0.2275619,1614.5,1614.3,6.19449]
[1744540394698,0.2275619,1614.5,1614.4,6.19425]
[1744540394903,0.2275619,1614.5,1614.3,6.19446]
[1744540395060,0.2275619,1614.5,1614.3,6.19462]
[1744540395256,0.2275619,1614.5,1614.2,13.17204]
[1744540395802,6.4217919,1614.5,1614.1,6.19511]
[1744540395960,6.1944,1614.4,1614.1,6.19511]
[1744540396160,6.19423,1614.5,1614.1,6.19511]
[1744540396385,0.2275619,1614.4,1614.2,6.19485]
[1744540396588,0.2275619,1614.4,1614.3,6.19463]
[1744540397387,6.19401,1614.5,1614.1,6.19534]
[1744540397596,0.2275619,1614.4,1614.1,6.19534]
[1744540397801,6.4219419,1614.4,1614.1,6.19534]
[1744540398203,0.8056,1614.3,1613.9,12.52804]
[1744540398371,7.00048,1614.3,1613.9,18.72404]
[1744540398567,13.19549,1614.3,1613.9,12.528]
[1744540398898,6.4226419,1614.2,1613.9,12.528]
[1744540399961,12.6178919,1614.2,1613.9,12.528]
[1744540400163,6.4226419,1614.2,1613.9,12.528]
[1744540400359,6.1963,1613.9,1613.6,6.19724]
[1744540400558,0.8056,1614.0,1613.4,66.47328]
[1744540400763,0.21828365,1613.9,1613.6,0.8202]
[1744540400957,0.8056,1614.2,1613.6,7.47441121]
[1744540401157,0.21781489,1614.1,1614.0,6.1956]
[1744540401483,0.21781489,1614.1,1613.9,6.1961]
[1744540401657,7.00068,1614.2,1613.9,6.1961]
[1744540401857,7.00068,1614.2,1613.8,6.19648]
[1744540401858,0.21781489,1614.1,1613.8,6.19648]
[1744540402162,7.00068,1614.2,1613.9,6.1961]
[1744540402497,0.21781489,1614.1,1613.8,12.39278]
[1744540402797,7.00066,1614.2,1613.8,6.19637]
[1744540403000,0.21781489,1614.0,1613.8,6.19637]
[1744540403302,6.19552,1614.1,1613.8,7.517714]
[1744540403456,0.7843,1613.9,1613.6,6.19728]
[1744540403856,0.21781489,1613.8,1613.6,6.19728]
[1744540404071,0.7843,1613.9,1613.6,6.19728]
[1744540404304,0.21781489,1613.8,1613.6,6.19728]
[1744540404502,0.7843,1613.9,1613.6,7.513727]
[1744540404657,0.21781489,1613.8,1613.6,7.513727]
[1744540405163,0.21781489,1613.8,1613.6,7.513627]
[1744540405363,0.7843,1613.9,1613.7,12.39386]
[1744540405595,0.21781489,1613.8,1613.7,6.19693]
[1744540405764,0.21781489,1613.8,1613.7,7.5679917]
[1744540405965,6.97972,1614.1,1613.7,7.5679917]
[1744540406165,0.21781489,1614.0,1613.7,6.19682]
[1744540406466,12.39278,1613.9,1613.5,13.16472]
[1744540406691,6.19634,1613.9,1613.6,6.1972]
[1744540406895,0.7843,1614.1,1613.7,6.19672]
[1744540406896,0.21781489,1613.8,1613.7,6.19672]
[1744540407204,13.15676,1614.3,1613.9,6.19584]
[1744540407712,6.96183,1614.3,1614.0,6.19561]
[1744540407862,13.15674,1614.3,1613.9,6.19611]
[1744540408066,13.15674,1614.3,1613.9,12.39216]
[1744540408392,6.96183,1614.3,1614.0,6.19566]
[1744540409105,0.7672,1614.3,1614.0,6.19563]
[1744540409263,0.7672,1614.4,1614.1,6.19523]
[1744540409458,6.96164,1614.4,1614.0,6.1957]
[1744540409704,6.96164,1614.4,1614.0,7.0108526]
[1744540410100,6.96164,1614.4,1614.0,7.0108226]
[1744540410311,6.96164,1614.4,1614.1,6.19524]
[1744540411506,0.7672,1614.4,1614.1,12.39052]
[1744540411695,6.96114,1614.5,1614.1,12.39052]
[1744540411891,13.15521,1614.5,1614.1,13.71108726]
[1744540412097,13.15521,1614.5,1614.1,7.51580726]
[1744540412295,6.95842,1614.7,1614.3,6.19444]
[1744540412480,13.15171,1614.7,1614.4,6.1941]
[1744540412680,6.19399,1614.5,1614.2,6.332]
[1744540412875,12.38813,1614.5,1614.2,6.332]
[1744540413211,6.19399,1614.5,1614.2,6.332]
[1744540413913,6.19356,1614.6,1614.2,12.52669]
[1744540414216,6.19356,1614.6,1614.2,18.72154]
[1744540414415,0.7653,1614.7,1614.4,6.19387]
[1744540414579,13.15045,1614.9,1614.5,6.19372]
[1744540414779,6.19283,1614.8,1614.5,6.19372]
[1744540414973,12.38578,1614.8,1614.5,6.19372]
[1744540415383,6.19283,1614.8,1614.5,6.19372]
[1744540415915,12.38572,1614.8,1614.5,6.19372]
[1744540416078,6.19283,1614.8,1614.5,6.19372]
[1744540416275,6.19283,1614.8,1614.5,7.432517]
[1744540416475,13.15021,1614.9,1614.5,13.626457]
[1744540416702,6.95769,1614.9,1614.6,6.19336]
[1744540417941,13.15019,1614.9,1614.6,6.19336]
[1744540418236,6.95769,1614.9,1614.6,6.19336]
[1744540418441,6.19271,1614.8,1614.7,0.619336]
[1744540418619,6.19271,1614.8,1614.5,6.19377]
[1744540418823,6.95769,1614.9,1614.5,6.19377]
[1744540419120,6.19283,1614.8,1614.5,6.19375]
[1744540419312,6.19283,1614.8,1614.5,6.1937]
[1744540419510,6.9577,1614.9,1614.5,12.38739]
[1744540419721,6.9577,1614.9,1614.6,1.238739]
[1744540420243,13.15021,1614.9,1614.6,1.238739]
[1744540420607,6.9577,1614.9,1614.6,1.238739]
[1744540421258,6.19201,1615.0,1614.6,2.036739]
[1744540421540,13.31664,1615.1,1614.7,6.19296]
[1744540421541,0.22033866,1614.9,1614.7,6.19296]
[1744540421737,6.98464,1615.1,1614.8,6.19271]
[1744540421937,0.22071352,1615.0,1614.8,6.19255]
[1744540422141,0.22071352,1615.0,1614.9,6.99323]
[1744540422445,6.19195,1615.0,1614.7,6.19297]
[1744540422611,6.41266352,1615.0,1614.7,1.868945]
[1744540422808,6.19257,1614.9,1614.6,13.29731]
[1744540423048,6.19257,1614.9,1614.6,13.29721]
[1744540423243,6.19257,1614.9,1614.6,19.49051]
[1744540423444,13.18768,1615.0,1614.6,13.2972]
[1744540423633,0.22071352,1614.8,1614.7,6.19302]
[1744540423948,0.22071352,1614.8,1614.7,14.335002]
[1744540424147,12.38346,1615.1,1614.7,14.335002]
[1744540424450,0.22071352,1614.8,1614.7,8.141982]
[1744540424607,12.38346,1615.1,1614.7,8.141982]
[1744540424808,0.22071352,1615.0,1614.7,8.141982]
[1744540425004,0.22071352,1615.0,1614.8,7.0068682]
[1744540425554,0.22071352,1615.0,1614.9,6.99323]
[1744540425713,9.99448,1615.3,1614.9,6.99323]
[1744540425914,6.41887515,1615.2,1614.9,6.99323]
[1744540426129,6.41887515,1615.2,1614.9,0.8009]
[1744540426350,6.19158,1615.1,1614.9,0.78076382]
[1744540426535,6.99568,1615.0,1614.7,2.749922]
[1744540426857,0.22961613,1614.9,1614.7,8.942972]
[1744540427823,0.22961613,1614.9,1614.7,8.942892]
[1744540428158,0.22961613,1614.9,1614.7,15.135832]
[1744540428506,0.22961613,1614.9,1614.8,7.7062932]
[1744540428710,9.95162,1615.3,1614.9,6.1922]
[1744540428935,0.22952246,1615.2,1614.9,6.1922]
[1744540429319,6.42081246,1615.2,1614.9,6.1922]
[1744540429724,12.61223246,1615.2,1614.9,1.38984932]
[1744540430136,6.19163,1615.1,1614.9,1.38984932]
[1744540430455,6.19163,1615.1,1614.7,8.943002]
[1744540430611,0.22952246,1615.0,1614.7,8.943002]
[1744540430953,0.22952246,1615.0,1614.8,6.19265]
[1744540432063,0.22952246,1615.0,1614.9,6.99833]
[1744540432406,7.02502,1615.4,1615.1,6.19138]
[1744540433325,13.21563,1615.4,1615.1,6.19138]
[1744540433565,13.2156,1615.4,1615.1,6.19138]
[1744540433731,7.02502,1615.4,1615.1,6.19138]
[1744540434055,0.02,1615.4,1615.1,7.429705]
[1744540434257,0.02,1615.4,1615.1,6.19138]
[1744540434465,12.40117,1615.4,1615.0,18.68469]
[1744540434859,6.19083,1615.3,1615.0,12.49282]
[1744540435054,6.19214,1615.0,1614.7,8.142102]
[1744540435429,0.8146,1615.2,1614.5,12.4948]
[1744540435756,6.19275,1614.8,1614.5,12.4948]
[1744540436339,0.8146,1614.9,1614.5,6.301]
[1744540436553,0.20959172,1614.8,1614.7,6.193]
[1744540436747,7.00622,1615.1,1614.8,6.19265]
[1744540436953,0.20959172,1615.0,1614.8,7.431153]
[1744540437359,0.20959172,1615.0,1614.8,13.623693]
[1744540437741,12.38261,1615.2,1614.8,13.623643]
[1744540437951,0.20949791,1615.1,1614.8,13.623643]
[1744540438152,6.19124,1615.2,1614.9,6.19226]
[1744540438359,0.21043596,1615.1,1614.9,1.5440823]
[1744540438559,12.38268,1615.2,1614.9,1.5440823]
[1744540438865,0.21043596,1615.1,1614.9,0.7430823]
[1744540439167,12.38268,1615.2,1614.9,0.7430823]
[1744540439370,0.21043596,1615.1,1614.9,0.7430823]
[1744540439535,6.19124,1615.2,1614.9,6.9353623]
[1744540439728,0.21081115,1615.1,1614.9,6.9352523]
[1744540439942,6.21048,1615.4,1615.1,6.1915]
[1744540440165,0.21081115,1615.3,1615.2,6.19116]
[1744540440465,0.02,1615.4,1615.2,6.19116]
[1744540440759,0.21090494,1615.3,1615.2,6.19116]
[1744540440968,0.02,1615.4,1615.2,6.19116]
[1744540441285,0.21090494,1615.3,1615.2,7.509526]
[1744540441566,0.02,1615.4,1615.2,13.700686]
[1744540441773,0.21240548,1615.3,1615.2,13.700686]
[1744540441956,0.02,1615.4,1615.2,13.700686]
[1744540442162,0.02,1615.4,1615.3,6.1908]
[1744540442364,0.02,1615.4,1615.3,8.3501326]
[1744540442571,0.02,1615.4,1615.3,14.6511326]
[1744540446152,0.02,1615.4,1615.3,15.1075066]
[1744540448255,0.02,1615.4,1615.3,14.6511326]
[1744540450460,0.02,1615.4,1615.3,15.1163708]
[1744540451958,0.02,1615.4,1615.3,13.8618326]
[1744540452500,0.02,1615.4,1615.3,7.6710326]
[1744540452684,0.7844,1615.4,1615.3,6.301]
[1744540452892,0.7844,1615.4,1615.0,0.69352523]
[1744540453056,0.7644,1615.2,1614.9,12.38438]
[1744540453403,0.7844,1615.4,1615.0,0.7695]
[1744540453598,0.7844,1615.4,1615.2,6.1909]
[1744540453804,0.7844,1615.4,1615.2,7.429139]
[1744540454111,0.02,1615.4,1615.2,13.620179]
[1744540455009,0.02,1615.4,1615.2,7.429139]
[1744540455230,0.02,1615.4,1615.2,13.620189]
[1744540455640,0.02,1615.4,1615.2,7.429139]
[1744540457433,0.02,1615.4,1615.2,1.238239]
[1744540457637,6.95587,1615.3,1614.9,6.19227]
[1744540457835,13.14696,1615.3,1614.9,6.19227]
[1744540457999,13.14696,1615.3,1614.9,6.19222]
[1744540458337,13.14696,1615.3,1614.9,8.143557]
[1744540459705,6.19131,1615.2,1614.9,8.143557]
[1744540460005,12.38268,1615.2,1614.9,8.143537]
[1744540460196,12.38268,1615.2,1614.9,1.951337]
[1744540461394,6.19131,1615.2,1614.9,1.951337]
[1744540461840,12.38279,1615.2,1614.9,1.951337]
[1744540462141,12.38279,1615.2,1614.8,18.70626]
[1744540462295,6.19131,1615.2,1614.9,6.1923]
[1744540462497,0.7648,1615.3,1615.1,6.19144]
[1744540462719,12.40109,1615.4,1615.0,12.38357]
[1744540464173,6.19081,1615.3,1615.0,12.38357]
[1744540464464,6.19081,1615.3,1615.1,1.238357]
[1744540464826,6.2105,1615.4,1615.1,1.238357]
[1744540465551,6.19093,1615.3,1615.0,6.19177]
[1744540465944,0.8219,1615.2,1614.9,13.1418]
[1744540466555,0.21803174,1615.1,1614.9,13.1418]
[1744540466729,0.8219,1615.2,1614.9,13.1418]
[1744540466930,0.21831303,1615.1,1614.9,13.1418]
[1744540467143,7.01314,1615.2,1615.0,1.31418]
[1744540467446,0.21831303,1615.1,1614.9,6.19225]
[1744540467624,0.21831303,1615.1,1614.9,12.38445]
[1744540467825,7.01314,1615.2,1614.9,12.38445]
[1744540468026,0.21831303,1615.1,1614.9,12.38445]
[1744540468224,7.01314,1615.2,1614.9,6.1922]
[1744540468527,0.21831303,1615.1,1614.9,8.140342]
[1744540468750,7.01314,1615.2,1614.9,8.140342]
[1744540468950,0.21831303,1615.1,1614.9,14.332522]
[1744540469259,7.01314,1615.2,1614.9,14.332522]
[1744540469444,0.21831303,1615.0,1614.9,14.332522]
[1744540469648,0.8219,1615.2,1614.9,14.332522]
[1744540469850,7.01322,1615.2,1615.0,1.4332522]
[1744540471059,13.20456,1615.2,1615.0,1.4332522]
[1744540471557,6.19156,1615.1,1614.9,1.948142]
[1744540473058,7.01317,1615.2,1614.9,8.140262]
[1744540473360,13.20452,1615.2,1614.9,8.140262]
[1744540473730,7.01317,1615.2,1614.9,8.140262]
[1744540474245,13.20453,1615.2,1614.9,8.140262]
[1744540474450,6.19157,1615.1,1614.9,1.948142]
[1744540476757,6.19195,1615.0,1614.8,6.321]
[1744540477063,13.18556,1615.0,1614.8,6.321]
[1744540477363,6.19236,1614.9,1614.5,13.30416]
[1744540477564,12.38505,1614.9,1614.5,19.49787]
[1744540477990,0.7852,1614.8,1614.3,53.8967]
[1744540478145,6.19347,1614.7,1614.4,1.02174564]
[1744540478487,0.21315556,1614.6,1614.4,1.02174564]
[1744540478980,0.21315556,1614.5,1614.4,7.21593564]
[1744540479171,12.38677,1614.7,1614.4,7.21593564]
[1744540479356,0.21315556,1614.6,1614.4,7.21593564]
[1744540479558,12.38677,1614.7,1614.4,7.21593564]
[1744540479767,0.21315556,1614.6,1614.4,7.21593564]
[1744540479974,12.38677,1614.7,1614.4,7.21593564]
[1744540480154,0.21315556,1614.6,1614.4,7.21593564]
[1744540480362,12.38677,1614.7,1614.4,7.21593564]
[1744540480563,0.21315556,1614.6,1614.4,7.21593564]
[1744540480737,12.38677,1614.7,1614.4,7.21593564]
[1744540480937,0.21315556,1614.6,1614.4,7.21593564]
[1744540481176,12.38677,1614.7,1614.4,7.21593564]
[1744540481419,0.21315556,1614.6,1614.4,7.21593564]
[1744540481674,12.38677,1614.7,1614.4,7.21593564]
[1744540481873,0.21315556,1614.5,1614.4,7.21593564]
[1744540482073,0.7852,1614.8,1614.5,6.19372]
[1744540482373,0.21315556,1614.7,1614.5,12.38744]
[1744540482535,0.21315556,1614.7,1614.6,6.97248]
[1744540482735,6.19201,1615.0,1614.6,13.16596]
[1744540482968,0.98780316,1614.9,1614.6,13.703416]
[1744540483369,0.20790316,1614.9,1614.7,6.97192]
[1744540483566,6.19165,1615.1,1614.8,6.19271]
[1744540483870,6.39987316,1615.0,1614.7,6.97192]
[1744540484057,6.39987316,1615.0,1614.7,6.19292]
[1744540484449,0.7799,1614.9,1614.7,6.19292]
[1744540484649,0.7799,1614.9,1614.7,7.5632126]
[1744540484850,0.20790316,1614.8,1614.7,7.5632126]
[1744540485049,0.7799,1614.9,1614.7,7.5632126]
[1744540485249,0.20790316,1614.8,1614.7,7.5632126]
[1744540485675,0.7799,1614.9,1614.7,7.5632126]
[1744540485846,0.20790316,1614.8,1614.7,7.5632126]
[1744540486340,0.7799,1614.9,1614.7,7.5632126]
[1744540486553,6.19197,1615.0,1614.7,7.5632126]
[1744540486554,0.20790316,1614.8,1614.7,7.5632126]
[1744540486787,6.97187,1615.0,1614.7,7.5632126]
[1744540486971,0.20790316,1614.9,1614.7,7.5632126]
[1744540487173,0.20790316,1614.9,1614.8,0.75632126]
[1744540487367,6.40023316,1614.9,1614.7,1.3702926]
[1744540487574,0.20790316,1614.9,1614.6,6.19334]
[1744540487849,0.20790316,1614.9,1614.8,6.95671]
[1744540488053,6.19195,1615.0,1614.7,12.44594]
[1744540488405,0.20921646,1614.9,1614.7,12.44594]
[1744540489078,6.40157646,1614.9,1614.7,6.253]
[1744540489254,7.22557646,1614.9,1614.7,6.253]
[1744540489456,7.22557646,1614.9,1614.7,7.45118668]
[1744540491001,1.03321646,1614.9,1614.7,7.45118668]
[1744540491303,1.03321646,1614.9,1614.7,13.64426668]
[1744540491461,0.20921646,1614.9,1614.7,13.64426668]
[1744540491862,0.20921646,1614.9,1614.7,13.64412668]
[1744540492080,0.20921646,1614.9,1614.8,1.36441267]
[1744540492362,0.20921646,1614.9,1614.7,12.44594]
[1744540493159,0.20921646,1614.9,1614.7,6.253]
[1744540493575,0.8051,1614.8,1614.7,6.253]
[1744540493787,1.01422266,1614.8,1614.7,6.253]
[1744540493987,0.20912266,1614.8,1614.7,13.2641]
[1744540494184,6.19197,1615.0,1614.7,21.402951]
[1744540494392,0.21071733,1614.9,1614.7,15.209851]
[1744540494601,0.21071733,1614.9,1614.7,14.391851]
[1744540495798,6.99781,1614.8,1614.7,6.253]
[1744540496173,7.20852733,1614.8,1614.5,12.38744]
[1744540496587,7.20852733,1614.8,1614.5,6.19369]
[1744540497102,7.20852733,1614.8,1614.5,12.3874]
[1744540498205,6.19318,1614.7,1614.4,14.28686564]
[1744540498405,0.21081113,1614.6,1614.5,1.42868656]
[1744540498585,6.19318,1614.7,1614.5,1.42868656]
[1744540498786,0.21081113,1614.6,1614.5,1.42868656]
[1744540498979,6.19318,1614.7,1614.5,1.42868656]
[1744540500708,13.1908,1614.8,1614.5,1.42868656]
[1744540501085,0.21081113,1614.7,1614.5,7.62254656]
[1744540501287,0.21081113,1614.7,1614.6,7.75683466]
[1744540501603,13.19761,1615.1,1614.7,6.19282]
[1744540501802,0.20959164,1615.0,1614.7,6.19282]
[1744540502001,6.40154164,1615.0,1614.7,12.38577]
[1744540502397,6.40154164,1615.0,1614.7,6.19282]
[1744540502607,6.40154164,1615.0,1614.7,7.58778047]
[1744540504217,12.3849,1614.9,1614.7,1.39496047]
[1744540504432,6.19237,1614.9,1614.5,7.62247656]
[1744540504586,7.18940164,1614.8,1614.4,13.19744]
[1744540504789,6.19313,1614.7,1614.4,13.19744]
[1744540504986,6.40300314,1614.7,1614.4,13.19744]
[1744540505213,6.40300314,1614.7,1614.4,15.436639]
[1744540505416,12.59626314,1614.7,1614.4,15.436639]
[1744540505593,6.1936,1614.6,1614.4,6.253]
[1744540505791,6.19386,1614.5,1614.4,6.253]
[1744540506002,6.40373314,1614.5,1614.4,6.253]
[1744540506917,0.20987314,1614.5,1614.4,6.253]
[1744540507287,0.20987314,1614.5,1614.4,13.692011]
[1744540508292,6.19319,1614.7,1614.4,13.692011]
[1744540508499,0.20987314,1614.5,1614.4,13.692011]
[1744540508720,6.19319,1614.7,1614.4,13.692011]
[1744540508885,0.20987314,1614.5,1614.4,13.692011]
[1744540509090,6.19319,1614.7,1614.4,13.692011]
[1744540509610,0.20987314,1614.6,1614.4,13.692011]
[1744540509810,6.19319,1614.7,1614.4,13.692011]
[1744540509997,0.20987314,1614.6,1614.4,13.692011]
[1744540510201,6.19319,1614.7,1614.4,13.692011]
[1744540510401,0.20987314,1614.6,1614.4,13.692011]
[1744540510614,6.19319,1614.7,1614.4,13.692011]
[1744540510815,0.20987314,1614.6,1614.4,13.692011]
[1744540511016,6.19319,1614.7,1614.4,13.692011]
[1744540511205,0.20987314,1614.6,1614.4,13.692011]
[1744540511406,0.7598,1614.8,1614.5,1.3692011]
[1744540511622,0.20987314,1614.7,1614.5,1.3692011]
[1744540511802,0.7598,1614.6,1614.5,1.3692011]
[1744540512332,7.16315314,1614.6,1614.4,6.253]
[1744540513027,0.96967314,1614.6,1614.4,12.44714]
[1744540514593,0.96967314,1614.6,1614.4,18.64123]
[1744540514804,0.96967314,1614.6,1614.4,12.44709]
[1744540515299,0.96967314,1614.6,1614.4,6.253]
[1744540515732,0.96967314,1614.6,1614.4,8.117206]
[1744540516936,0.96967314,1614.6,1614.4,14.311306]
[1744540517100,0.20987314,1614.6,1614.5,6.19386]
[1744540517430,6.97538,1614.8,1614.5,6.19386]
[1744540517637,0.20987314,1614.7,1614.5,6.19386]
[1744540517835,0.20987314,1614.7,1614.5,8.3253736]
[1744540518330,0.20987314,1614.7,1614.6,6.19348]
[1744540518730,0.7826,1615.0,1614.7,6.19281]
[1744540519028,0.7826,1615.0,1614.6,6.19339]
[1744540519029,6.40018551,1614.9,1614.6,6.19339]
[1744540520637,6.40018551,1614.9,1614.6,6.19341]
[1744540520839,0.20771551,1614.9,1614.6,7.64521136]